[Event "Titled Tuesday Blitz May 03 Early 2022"]
[White "Bifulco, Michel"]
[Black "Yang, Kaiqi"]
[WhiteFideId "828580"]
[BlackFideId "8604398"]
[WhiteElo "2165"]
[BlackElo "2373"]
[Result "0-1"]
[Round "07"]
[TimeControl "180+1"]
[Date "2022.05.03"]
[WhiteClock "0:00:03"]
[BlackClock "0:00:12"]

1. d4 {[%clk 0:03:00]}  e6 {[%clk 0:03:00]} 2. Nc3 {[%clk 0:03:00]}  Bb4 {[%clk 0:02:59]} 3. Bf4 {[%clk 0:02:54]}  Nf6 {[%clk 0:02:57]} 4. Qd3 {[%clk 0:02:52]}  d5 {[%clk 0:02:53]} 5. O-O-O {[%clk 0:02:49]}  c5 {[%clk 0:02:47]} 6. dxc5 {[%clk 0:02:47]}  Nbd7 {[%clk 0:02:45]} 7. Nb5 {[%clk 0:02:44]}  Nxc5 {[%clk 0:02:20]} 8. Qd4 {[%clk 0:02:38]}  Qa5 {[%clk 0:02:01]} 9. Nc7+ {[%clk 0:02:31]}  Ke7 {[%clk 0:02:01]} 10. a3 {[%clk 0:02:16]}  Bxa3 {[%clk 0:01:53]} 11. bxa3 {[%clk 0:02:16]}  Qxa3+ {[%clk 0:01:46]} 12. Qb2 {[%clk 0:02:16]}  Qa4 {[%clk 0:01:44]} 13. e3 {[%clk 0:02:07]}  Bd7 {[%clk 0:01:36]} 14. Nxa8 {[%clk 0:02:04]}  Rxa8 {[%clk 0:01:37]} 15. Nf3 {[%clk 0:02:02]}  Rc8 {[%clk 0:01:32]} 16. Nd4 {[%clk 0:01:02]}  Nfe4 {[%clk 0:01:30]} 17. Bb5 {[%clk 0:00:42]}  Bxb5 {[%clk 0:01:23]} 18. Qxb5 {[%clk 0:00:40]}  Qa1+ {[%clk 0:01:00]} 19. Qb1 {[%clk 0:00:37]}  Qc3 {[%clk 0:00:45]} 20. Nb5 {[%clk 0:00:23]}  Nd3+ {[%clk 0:00:28]} 21. Rxd3 {[%clk 0:00:23]}  Qxd3 {[%clk 0:00:28]} 22. Rd1 {[%clk 0:00:21]}  Qe2 {[%clk 0:00:27]} 23. Qb4+ {[%clk 0:00:17]}  Kf6 {[%clk 0:00:24]} 24. Qd4+ {[%clk 0:00:13]}  Kg6 {[%clk 0:00:23]} 25. Qd3 {[%clk 0:00:11]}  Qxf2 {[%clk 0:00:20]} 26. Rf1 {[%clk 0:00:08]}  Rxc2+ {[%clk 0:00:17]} 27. Qxc2 {[%clk 0:00:08]}  Qxf1+ {[%clk 0:00:18]} 28. Qd1 {[%clk 0:00:05]}  Qxb5 {[%clk 0:00:18]} 29. Qg4+ {[%clk 0:00:04]}  Kf6 {[%clk 0:00:18]} 30. Qh4+ {[%clk 0:00:03]}  g5 {[%clk 0:00:17]} 31. Qh6+ {[%clk 0:00:01]}  Ke7 {[%clk 0:00:17]} 32. Bxg5+ {[%clk 0:00:02]}  Kd7 {[%clk 0:00:17]} 33. Qf8 {[%clk 0:00:02]}  Qf1+ {[%clk 0:00:15]} 34. Kb2 {[%clk 0:00:01]}  Qxg2+ {[%clk 0:00:15]} 35. Kb3 {[%clk 0:00:01]}  Qxg5 {[%clk 0:00:15]} 36. Qxf7+ {[%clk 0:00:02]}  Qe7 {[%clk 0:00:15]} 37. Qf4 {[%clk 0:00:02]}  Qd6 {[%clk 0:00:13]} 38. Qf7+ {[%clk 0:00:02]}  Qe7 {[%clk 0:00:13]} 39. Qf4 {[%clk 0:00:03]}  a5 {[%clk 0:00:12]} 40. Qb8 {[%clk 0:00:02]}  Qb4+ {[%clk 0:00:11]} 41. Kc2 {[%clk 0:00:03]}  a4 {[%clk 0:00:12]} 0-1


[Site "https://www.chess.com"]

[Event "Titled Tuesday Blitz May 03 Early 2022"]
[White "Bongo Akanga Ndjila, Barthelemy"]
[Black "Polster, Christian"]
[WhiteFideId "10609431"]
[BlackFideId "12965081"]
[WhiteElo "1768"]
[BlackElo "2277"]
[Result "0-1"]
[Round "07"]
[TimeControl "180+1"]
[Date "2022.05.03"]
[WhiteClock "0:00:03"]
[BlackClock "0:00:11"]

1. d4 {[%clk 0:03:00]}  Nf6 {[%clk 0:02:56]} 2. c4 {[%clk 0:03:00]}  c5 {[%clk 0:02:51]} 3. d5 {[%clk 0:02:59]}  b5 {[%clk 0:02:51]} 4. cxb5 {[%clk 0:03:00]}  a6 {[%clk 0:02:51]} 5. bxa6 {[%clk 0:03:01]}  g6 {[%clk 0:02:50]} 6. Nc3 {[%clk 0:03:02]}  Bg7 {[%clk 0:02:51]} 7. Nf3 {[%clk 0:03:02]}  O-O {[%clk 0:02:51]} 8. e4 {[%clk 0:03:02]}  Qa5 {[%clk 0:02:51]} 9. Bd2 {[%clk 0:03:01]}  Bxa6 {[%clk 0:02:49]} 10. Bxa6 {[%clk 0:02:53]}  Qxa6 {[%clk 0:02:50]} 11. Qe2 {[%clk 0:02:53]}  d6 {[%clk 0:02:49]} 12. Qxa6 {[%clk 0:02:51]}  Nxa6 {[%clk 0:02:50]} 13. O-O {[%clk 0:02:50]}  Rfb8 {[%clk 0:02:49]} 14. Rab1 {[%clk 0:02:39]}  Nb4 {[%clk 0:02:42]} 15. a3 {[%clk 0:02:38]}  Nd3 {[%clk 0:02:42]} 16. Bc1 {[%clk 0:01:58]}  Nd7 {[%clk 0:02:34]} 17. Rd1 {[%clk 0:01:47]}  Nxf2 {[%clk 0:02:17]} 18. Kxf2 {[%clk 0:01:44]}  Bxc3 {[%clk 0:02:17]} 19. Rd3 {[%clk 0:01:29]}  Bf6 {[%clk 0:02:11]} 20. b4 {[%clk 0:01:18]}  Rb5 {[%clk 0:01:50]} 21. Nd2 {[%clk 0:01:13]}  Rab8 {[%clk 0:01:44]} 22. Nc4 {[%clk 0:01:11]}  cxb4 {[%clk 0:01:33]} 23. axb4 {[%clk 0:01:04]}  Rxb4 {[%clk 0:01:23]} 24. Rxb4 {[%clk 0:01:04]}  Rxb4 {[%clk 0:01:24]} 25. Nd2 {[%clk 0:00:52]}  Nc5 {[%clk 0:01:21]} 26. Ra3 {[%clk 0:00:50]}  Nd3+ {[%clk 0:01:18]} 27. Rxd3 {[%clk 0:00:48]}  h5 {[%clk 0:01:12]} 28. g3 {[%clk 0:00:44]}  Kg7 {[%clk 0:01:11]} 29. Ba3 {[%clk 0:00:35]}  Ra4 {[%clk 0:01:09]} 30. Ke2 {[%clk 0:00:29]}  g5 {[%clk 0:01:08]} 31. h3 {[%clk 0:00:21]}  g4 {[%clk 0:01:04]} 32. hxg4 {[%clk 0:00:20]}  hxg4 {[%clk 0:01:05]} 33. Nf1 {[%clk 0:00:19]}  Rxe4+ {[%clk 0:01:00]} 34. Ne3 {[%clk 0:00:18]}  Be5 {[%clk 0:00:52]} 35. Kf2 {[%clk 0:00:17]}  Kg6 {[%clk 0:00:51]} 36. Ng2 {[%clk 0:00:14]}  f5 {[%clk 0:00:49]} 37. Bc1 {[%clk 0:00:13]}  Bd4+ {[%clk 0:00:46]} 38. Be3 {[%clk 0:00:11]}  Be5 {[%clk 0:00:45]} 39. Nf4+ {[%clk 0:00:11]}  Bxf4 {[%clk 0:00:44]} 40. Bxf4 {[%clk 0:00:11]}  Kf6 {[%clk 0:00:40]} 41. Re3 {[%clk 0:00:11]}  Rd4 {[%clk 0:00:40]} 42. Re6+ {[%clk 0:00:11]}  Kf7 {[%clk 0:00:39]} 43. Bg5 {[%clk 0:00:11]}  Rxd5 {[%clk 0:00:39]} 44. Rxe7+ {[%clk 0:00:11]}  Kg6 {[%clk 0:00:39]} 45. Bh4 {[%clk 0:00:11]}  Re5 {[%clk 0:00:36]} 46. Rd7 {[%clk 0:00:10]}  Re6 {[%clk 0:00:29]} 47. Bd8 {[%clk 0:00:08]}  f4 {[%clk 0:00:24]} 48. gxf4 {[%clk 0:00:07]}  Kf5 {[%clk 0:00:25]} 49. Kg3 {[%clk 0:00:07]}  Re3+ {[%clk 0:00:24]} 50. Kf2 {[%clk 0:00:07]}  Rf3+ {[%clk 0:00:24]} 51. Ke2 {[%clk 0:00:06]}  Kxf4 {[%clk 0:00:22]} 52. Rxd6 {[%clk 0:00:06]}  Kg3 {[%clk 0:00:20]} 53. Bc7 {[%clk 0:00:06]}  Kg2 {[%clk 0:00:19]} 54. Ke1 {[%clk 0:00:06]}  Re3+ {[%clk 0:00:18]} 55. Kd1 {[%clk 0:00:05]}  g3 {[%clk 0:00:17]} 56. Rd2+ {[%clk 0:00:05]}  Kf3 {[%clk 0:00:14]} 57. Kc2 {[%clk 0:00:05]}  g2 {[%clk 0:00:13]} 58. Bb6 {[%clk 0:00:03]}  g1=Q {[%clk 0:00:12]} 59. Bxe3 {[%clk 0:00:02]}  Kxe3 {[%clk 0:00:13]} 60. Rd3+ {[%clk 0:00:02]}  Ke4 {[%clk 0:00:13]} 61. Rd2 {[%clk 0:00:03]}  Qc5+ {[%clk 0:00:13]} 62. Kd1 {[%clk 0:00:03]}  Qc4 {[%clk 0:00:12]} 63. Re2+ {[%clk 0:00:03]}  Kd3 {[%clk 0:00:11]} 64. Rd2+ {[%clk 0:00:02]}  Ke3 {[%clk 0:00:11]} 65. Re2+ {[%clk 0:00:03]}  Qxe2+ {[%clk 0:00:11]} 0-1


[Site "https://www.chess.com"]

[Event "Titled Tuesday Blitz May 03 Early 2022"]
[White "Cramling Bellon, Anna"]
[Black "Chuemsakul, Sarocha"]
[WhiteFideId "32009232"]
[BlackFideId "6203710"]
[WhiteElo "1905"]
[BlackElo "1703"]
[Result "1-0"]
[Round "07"]
[TimeControl "180+1"]
[Date "2022.05.03"]
[WhiteClock "0:00:03"]
[BlackClock "0:00:02"]

1. d4 {[%clk 0:03:00]}  Nf6 {[%clk 0:02:58]} 2. c4 {[%clk 0:03:00]}  c5 {[%clk 0:02:57]} 3. d5 {[%clk 0:03:01]}  g6 {[%clk 0:02:54]} 4. Nc3 {[%clk 0:03:00]}  e6 {[%clk 0:02:47]} 5. e4 {[%clk 0:02:43]}  exd5 {[%clk 0:02:46]} 6. cxd5 {[%clk 0:02:32]}  d6 {[%clk 0:02:45]} 7. Nf3 {[%clk 0:02:32]}  a6 {[%clk 0:02:43]} 8. a4 {[%clk 0:02:32]}  Bg7 {[%clk 0:02:43]} 9. Bd3 {[%clk 0:02:32]}  O-O {[%clk 0:02:43]} 10. O-O {[%clk 0:02:32]}  Bg4 {[%clk 0:02:40]} 11. h3 {[%clk 0:02:32]}  Bxf3 {[%clk 0:02:40]} 12. Qxf3 {[%clk 0:02:33]}  Nfd7 {[%clk 0:02:33]} 13. Qg3 {[%clk 0:02:23]}  Ne5 {[%clk 0:02:25]} 14. Bc2 {[%clk 0:02:22]}  c4 {[%clk 0:02:22]} 15. f4 {[%clk 0:02:19]}  Ned7 {[%clk 0:02:09]} 16. e5 {[%clk 0:01:56]}  dxe5 {[%clk 0:02:05]} 17. f5 {[%clk 0:01:57]}  Qe7 {[%clk 0:01:18]} 18. Ne4 {[%clk 0:01:39]}  Nf6 {[%clk 0:00:41]} 19. fxg6 {[%clk 0:01:05]}  fxg6 {[%clk 0:00:41]} 20. Bg5 {[%clk 0:01:03]}  Nbd7 {[%clk 0:00:41]} 21. Rae1 {[%clk 0:00:52]}  Rae8 {[%clk 0:00:36]} 22. b3 {[%clk 0:00:36]}  Qb4 {[%clk 0:00:32]} 23. bxc4 {[%clk 0:00:29]}  Qxc4 {[%clk 0:00:24]} 24. Nxf6+ {[%clk 0:00:26]}  Nxf6 {[%clk 0:00:19]} 25. Bb3 {[%clk 0:00:26]}  Qc5+ {[%clk 0:00:19]} 26. Be3 {[%clk 0:00:19]}  Qb4 {[%clk 0:00:19]} 27. Bg5 {[%clk 0:00:13]}  Qc5+ {[%clk 0:00:17]} 28. Kh1 {[%clk 0:00:12]}  Qd6 {[%clk 0:00:17]} 29. Bxf6 {[%clk 0:00:03]}  Bxf6 {[%clk 0:00:16]} 30. Qg4 {[%clk 0:00:04]}  Kh8 {[%clk 0:00:16]} 31. h4 {[%clk 0:00:02]}  Bg7 {[%clk 0:00:15]} 32. h5 {[%clk 0:00:02]}  gxh5 {[%clk 0:00:14]} 33. Qxh5 {[%clk 0:00:03]}  Rd8 {[%clk 0:00:07]} 34. Qg4 {[%clk 0:00:03]}  Rde8 {[%clk 0:00:06]} 35. Qh3 {[%clk 0:00:02]}  Rf6 {[%clk 0:00:05]} 36. Rxf6 {[%clk 0:00:02]}  Bxf6 {[%clk 0:00:06]} 37. Re4 {[%clk 0:00:02]}  Rg8 {[%clk 0:00:06]} 38. Rg4 {[%clk 0:00:02]}  Rxg4 {[%clk 0:00:05]} 39. Qxg4 {[%clk 0:00:03]}  Qe7 {[%clk 0:00:04]} 40. d6 {[%clk 0:00:03]}  Qxd6 {[%clk 0:00:02]} 41. Qg8# {[%clk 0:00:03]} 1-0


[Site "https://www.chess.com"]

[Event "Titled Tuesday Blitz May 03 Early 2022"]
[White "D`Arruda, Ricardo D."]
[Black "Saravana, Krishnan P."]
[WhiteFideId "100692"]
[BlackFideId "5018382"]
[WhiteElo "2412"]
[BlackElo "2210"]
[Result "1-0"]
[Round "07"]
[TimeControl "180+1"]
[Date "2022.05.03"]
[WhiteClock "0:00:19"]
[BlackClock "0:00:03"]

1. Nf3 {[%clk 0:02:53]}  d5 {[%clk 0:02:59]} 2. d4 {[%clk 0:02:53]}  Nf6 {[%clk 0:02:59]} 3. g3 {[%clk 0:02:53]}  c6 {[%clk 0:02:58]} 4. Bg2 {[%clk 0:02:53]}  Bf5 {[%clk 0:02:58]} 5. O-O {[%clk 0:02:53]}  e6 {[%clk 0:02:59]} 6. c4 {[%clk 0:02:52]}  Be7 {[%clk 0:02:58]} 7. Nc3 {[%clk 0:02:51]}  O-O {[%clk 0:02:58]} 8. b3 {[%clk 0:02:51]}  a5 {[%clk 0:02:58]} 9. Bb2 {[%clk 0:02:50]}  Na6 {[%clk 0:02:58]} 10. Nh4 {[%clk 0:02:45]}  Bg4 {[%clk 0:02:57]} 11. h3 {[%clk 0:02:43]}  Bh5 {[%clk 0:02:57]} 12. g4 {[%clk 0:02:38]}  Bg6 {[%clk 0:02:44]} 13. Nxg6 {[%clk 0:02:37]}  hxg6 {[%clk 0:02:44]} 14. e4 {[%clk 0:02:36]}  dxe4 {[%clk 0:02:44]} 15. Nxe4 {[%clk 0:02:36]}  Nxe4 {[%clk 0:02:41]} 16. Bxe4 {[%clk 0:02:37]}  a4 {[%clk 0:02:41]} 17. Qe2 {[%clk 0:02:31]}  a3 {[%clk 0:02:41]} 18. Bc3 {[%clk 0:02:30]}  Bb4 {[%clk 0:02:41]} 19. Bxb4 {[%clk 0:02:21]}  Nxb4 {[%clk 0:02:41]} 20. Rad1 {[%clk 0:02:16]}  Qe7 {[%clk 0:02:37]} 21. Rd2 {[%clk 0:02:16]}  Rad8 {[%clk 0:02:36]} 22. f4 {[%clk 0:02:12]}  Rfe8 {[%clk 0:02:35]} 23. Rfd1 {[%clk 0:02:11]}  Nd5 {[%clk 0:02:31]} 24. cxd5 {[%clk 0:01:53]}  exd5 {[%clk 0:02:31]} 25. Bf3 {[%clk 0:01:53]}  Qf6 {[%clk 0:02:31]} 26. Qf2 {[%clk 0:01:47]}  Qxf4 {[%clk 0:02:30]} 27. Bg2 {[%clk 0:01:44]}  Qd6 {[%clk 0:02:28]} 28. Re1 {[%clk 0:01:40]}  Rxe1+ {[%clk 0:02:16]} 29. Qxe1 {[%clk 0:01:41]}  Qb4 {[%clk 0:02:16]} 30. Qe3 {[%clk 0:01:32]}  Rd6 {[%clk 0:02:15]} 31. Qf2 {[%clk 0:01:22]}  Rf6 {[%clk 0:02:15]} 32. Qe3 {[%clk 0:01:15]}  Re6 {[%clk 0:02:14]} 33. Qd3 {[%clk 0:01:15]}  Re1+ {[%clk 0:02:11]} 34. Bf1 {[%clk 0:01:11]}  Qd6 {[%clk 0:02:11]} 35. Re2 {[%clk 0:01:09]}  Rxe2 {[%clk 0:02:09]} 36. Bxe2 {[%clk 0:01:10]}  Qf4 {[%clk 0:02:07]} 37. Kg2 {[%clk 0:01:05]}  Qc1 {[%clk 0:02:06]} 38. Bd1 {[%clk 0:01:01]}  Qb2+ {[%clk 0:02:05]} 39. Qc2 {[%clk 0:01:01]}  Qxd4 {[%clk 0:02:05]} 40. Kf3 {[%clk 0:00:51]}  Kh7 {[%clk 0:02:00]} 41. Be2 {[%clk 0:00:52]}  c5 {[%clk 0:01:54]} 42. Bd3 {[%clk 0:00:51]}  Qf6+ {[%clk 0:01:44]} 43. Kg2 {[%clk 0:00:51]}  b6 {[%clk 0:01:42]} 44. Kg3 {[%clk 0:00:50]}  Qe5+ {[%clk 0:01:41]} 45. Kg2 {[%clk 0:00:50]}  Qe3 {[%clk 0:01:36]} 46. h4 {[%clk 0:00:48]}  Qf4 {[%clk 0:01:35]} 47. Qe2 {[%clk 0:00:44]}  Qf6 {[%clk 0:01:18]} 48. h5 {[%clk 0:00:44]}  Kh6 {[%clk 0:01:11]} 49. Qd2+ {[%clk 0:00:40]}  g5 {[%clk 0:01:08]} 50. Qe2 {[%clk 0:00:35]}  Qd4 {[%clk 0:01:07]} 51. Kg3 {[%clk 0:00:30]}  Qf4+ {[%clk 0:01:00]} 52. Kh3 {[%clk 0:00:30]}  Qc1 {[%clk 0:00:55]} 53. Kg3 {[%clk 0:00:20]}  Qc3 {[%clk 0:00:52]} 54. Kg2 {[%clk 0:00:19]}  Qd4 {[%clk 0:00:47]} 55. Kf3 {[%clk 0:00:19]}  Qf4+ {[%clk 0:00:30]} 56. Kg2 {[%clk 0:00:18]}  Qf6 {[%clk 0:00:29]} 57. Qf3 {[%clk 0:00:18]}  Qb2+ {[%clk 0:00:25]} 58. Qf2 {[%clk 0:00:18]}  Qe5 {[%clk 0:00:18]} 59. Qxf7 {[%clk 0:00:18]}  Qf6 {[%clk 0:00:09]} 60. Qxf6+ {[%clk 0:00:17]}  gxf6 {[%clk 0:00:09]} 61. Kf3 {[%clk 0:00:18]}  Kg7 {[%clk 0:00:08]} 62. Bb5 {[%clk 0:00:18]}  Kh6 {[%clk 0:00:08]} 63. Bc6 {[%clk 0:00:18]}  d4 {[%clk 0:00:04]} 64. Ke4 {[%clk 0:00:18]}  Kg7 {[%clk 0:00:04]} 65. Bb5 {[%clk 0:00:18]}  Kh6 {[%clk 0:00:04]} 66. Bd3 {[%clk 0:00:19]}  Kg7 {[%clk 0:00:04]} 67. Kd5 {[%clk 0:00:19]}  Kh6 {[%clk 0:00:04]} 68. Kc6 {[%clk 0:00:19]}  Kg7 {[%clk 0:00:03]} 69. Kxb6 {[%clk 0:00:19]} 1-0


[Site "https://www.chess.com"]

[Event "Titled Tuesday Blitz May 03 Early 2022"]
[White "Deac, Bogdan-Daniel"]
[Black "Abarca Gonzalez, Nicolas"]
[WhiteFideId "1226380"]
[BlackFideId "3409422"]
[WhiteElo "2648"]
[BlackElo "2504"]
[Result "0-1"]
[Round "07"]
[TimeControl "180+1"]
[Date "2022.05.03"]
[WhiteClock "0:00:02"]
[BlackClock "0:00:31"]

1. d4 {[%clk 0:03:00]}  Nf6 {[%clk 0:02:58]} 2. Nf3 {[%clk 0:03:01]}  g6 {[%clk 0:02:57]} 3. Nbd2 {[%clk 0:03:00]}  d5 {[%clk 0:02:56]} 4. Nb3 {[%clk 0:02:59]}  a5 {[%clk 0:02:55]} 5. a4 {[%clk 0:02:58]}  Bg7 {[%clk 0:02:55]} 6. Bf4 {[%clk 0:02:58]}  O-O {[%clk 0:02:54]} 7. e3 {[%clk 0:02:58]}  Bf5 {[%clk 0:02:52]} 8. Be2 {[%clk 0:02:52]}  Nbd7 {[%clk 0:02:47]} 9. h3 {[%clk 0:02:52]}  b6 {[%clk 0:02:40]} 10. O-O {[%clk 0:02:49]}  c5 {[%clk 0:02:41]} 11. c3 {[%clk 0:02:42]}  c4 {[%clk 0:02:38]} 12. Nbd2 {[%clk 0:02:42]}  Ne4 {[%clk 0:02:33]} 13. Nxe4 {[%clk 0:02:40]}  Bxe4 {[%clk 0:02:34]} 14. b3 {[%clk 0:02:32]}  Rc8 {[%clk 0:02:30]} 15. bxc4 {[%clk 0:02:12]}  dxc4 {[%clk 0:02:31]} 16. Nd2 {[%clk 0:02:06]}  Bd3 {[%clk 0:02:29]} 17. Bxd3 {[%clk 0:01:25]}  cxd3 {[%clk 0:02:30]} 18. Ne4 {[%clk 0:01:25]}  e5 {[%clk 0:02:19]} 19. Bh2 {[%clk 0:01:10]}  f5 {[%clk 0:02:10]} 20. Qb3+ {[%clk 0:01:09]}  Kh8 {[%clk 0:02:10]} 21. Nd6 {[%clk 0:01:08]}  Rc6 {[%clk 0:01:55]} 22. Nf7+ {[%clk 0:00:45]}  Rxf7 {[%clk 0:01:56]} 23. Qxf7 {[%clk 0:00:45]}  e4 {[%clk 0:01:56]} 24. f3 {[%clk 0:00:37]}  Nf6 {[%clk 0:01:54]} 25. Be5 {[%clk 0:00:31]}  exf3 {[%clk 0:01:39]} 26. Rxf3 {[%clk 0:00:28]}  Qd7 {[%clk 0:01:30]} 27. Qb3 {[%clk 0:00:11]}  Ne4 {[%clk 0:01:23]} 28. Bxg7+ {[%clk 0:00:11]}  Kxg7 {[%clk 0:01:24]} 29. c4 {[%clk 0:00:11]}  Nd2 {[%clk 0:01:22]} 30. Qxd3 {[%clk 0:00:11]}  Nxf3+ {[%clk 0:01:15]} 31. gxf3 {[%clk 0:00:12]}  f4 {[%clk 0:01:16]} 32. d5 {[%clk 0:00:07]}  Rf6 {[%clk 0:01:10]} 33. Kg2 {[%clk 0:00:07]}  fxe3 {[%clk 0:01:08]} 34. Qxe3 {[%clk 0:00:08]}  Qc7 {[%clk 0:01:01]} 35. Rc1 {[%clk 0:00:05]}  Rf5 {[%clk 0:00:58]} 36. c5 {[%clk 0:00:04]}  bxc5 {[%clk 0:00:55]} 37. Rxc5 {[%clk 0:00:04]}  Qd8 {[%clk 0:00:48]} 38. Qd4+ {[%clk 0:00:04]}  Kh6 {[%clk 0:00:39]} 39. h4 {[%clk 0:00:04]}  Qd6 {[%clk 0:00:37]} 40. Rxa5 {[%clk 0:00:03]}  Qa3 {[%clk 0:00:35]} 41. Ra7 {[%clk 0:00:02]}  Qxf3+ {[%clk 0:00:32]} 42. Kh2 {[%clk 0:00:02]}  Qe2+ {[%clk 0:00:31]} 0-1


[Site "https://www.chess.com"]

[Event "Titled Tuesday Blitz May 03 Early 2022"]
[White "Delorme, Alban"]
[Black "Kozak, Antoni"]
[WhiteFideId "623636"]
[BlackFideId "21832030"]
[WhiteElo "2197"]
[BlackElo "2236"]
[Result "0-1"]
[Round "07"]
[TimeControl "180+1"]
[Date "2022.05.03"]
[WhiteClock "0:01:24"]
[BlackClock "0:00:09"]

1. d4 {[%clk 0:02:54]}  f5 {[%clk 0:02:59]} 2. Nf3 {[%clk 0:02:55]}  g6 {[%clk 0:02:58]} 3. g3 {[%clk 0:02:56]}  Bg7 {[%clk 0:02:57]} 4. Bg2 {[%clk 0:02:57]}  Nf6 {[%clk 0:02:57]} 5. c4 {[%clk 0:02:57]}  O-O {[%clk 0:02:58]} 6. Nc3 {[%clk 0:02:57]}  d6 {[%clk 0:02:57]} 7. O-O {[%clk 0:02:57]}  c6 {[%clk 0:02:57]} 8. Bg5 {[%clk 0:02:57]}  h6 {[%clk 0:02:48]} 9. Bxf6 {[%clk 0:02:56]}  Bxf6 {[%clk 0:02:48]} 10. e4 {[%clk 0:02:56]}  Bg7 {[%clk 0:02:46]} 11. Qd2 {[%clk 0:02:54]}  e5 {[%clk 0:02:31]} 12. Rad1 {[%clk 0:02:48]}  Qe8 {[%clk 0:02:18]} 13. exf5 {[%clk 0:02:44]}  Bxf5 {[%clk 0:01:44]} 14. dxe5 {[%clk 0:02:42]}  dxe5 {[%clk 0:01:44]} 15. Rfe1 {[%clk 0:02:41]}  Bg4 {[%clk 0:01:38]} 16. Nh4 {[%clk 0:02:38]}  Bxd1 {[%clk 0:01:36]} 17. Rxd1 {[%clk 0:02:34]}  Na6 {[%clk 0:01:36]} 18. Ne4 {[%clk 0:02:32]}  Rd8 {[%clk 0:01:31]} 19. Qxd8 {[%clk 0:02:27]}  Qxd8 {[%clk 0:01:31]} 20. Rxd8 {[%clk 0:02:28]}  Rxd8 {[%clk 0:01:32]} 21. Nxg6 {[%clk 0:02:28]}  Rd1+ {[%clk 0:01:28]} 22. Bf1 {[%clk 0:02:25]}  Nb4 {[%clk 0:01:27]} 23. Kg2 {[%clk 0:02:24]}  Nxa2 {[%clk 0:01:25]} 24. c5 {[%clk 0:02:23]}  Nb4 {[%clk 0:01:14]} 25. Bc4+ {[%clk 0:02:20]}  Nd5 {[%clk 0:01:14]} 26. Nd6 {[%clk 0:02:16]}  b5 {[%clk 0:01:08]} 27. Nxb5 {[%clk 0:02:06]}  cxb5 {[%clk 0:01:03]} 28. Bxd5+ {[%clk 0:02:05]}  Kh7 {[%clk 0:01:00]} 29. Ne7 {[%clk 0:01:45]}  Bf8 {[%clk 0:00:53]} 30. Be4+ {[%clk 0:01:45]}  Kg7 {[%clk 0:00:51]} 31. Nf5+ {[%clk 0:01:45]}  Kf6 {[%clk 0:00:51]} 32. c6 {[%clk 0:01:45]}  Rc1 {[%clk 0:00:48]} 33. h4 {[%clk 0:01:37]}  a5 {[%clk 0:00:47]} 34. Ne3 {[%clk 0:01:35]}  Ke6 {[%clk 0:00:37]} 35. Nd5 {[%clk 0:01:35]}  Kd6 {[%clk 0:00:29]} 36. Nc3 {[%clk 0:01:34]}  b4 {[%clk 0:00:20]} 37. Nb5+ {[%clk 0:01:35]}  Kc5 {[%clk 0:00:20]} 38. Nc7 {[%clk 0:01:34]}  Bd6 {[%clk 0:00:16]} 39. Ne8 {[%clk 0:01:29]}  a4 {[%clk 0:00:14]} 40. c7 {[%clk 0:01:29]}  Bxc7 {[%clk 0:00:14]} 41. Nxc7 {[%clk 0:01:30]}  a3 {[%clk 0:00:13]} 42. bxa3 {[%clk 0:01:30]}  bxa3 {[%clk 0:00:14]} 43. Na6+ {[%clk 0:01:28]}  Kd4 {[%clk 0:00:10]} 44. Nb4 {[%clk 0:01:20]}  Kxe4 {[%clk 0:00:10]} 45. g4 {[%clk 0:01:20]}  Rb1 {[%clk 0:00:09]} 46. Na2 {[%clk 0:01:21]}  Rb2 {[%clk 0:00:09]} 47. Nc3+ {[%clk 0:01:21]}  Kd3 {[%clk 0:00:10]} 48. Nd1 {[%clk 0:01:22]}  Rd2 {[%clk 0:00:09]} 49. g5 {[%clk 0:01:22]}  hxg5 {[%clk 0:00:09]} 50. h5 {[%clk 0:01:22]}  Rxd1 {[%clk 0:00:09]} 51. h6 {[%clk 0:01:23]}  Kc2 {[%clk 0:00:08]} 52. h7 {[%clk 0:01:24]}  Rd8 {[%clk 0:00:09]} 0-1


[Site "https://www.chess.com"]

[Event "Titled Tuesday Blitz May 03 Early 2022"]
[White "Donchenko, Alexander"]
[Black "Fedoseev, Vladimir"]
[WhiteFideId "24603295"]
[BlackFideId "24130737"]
[WhiteElo "2539"]
[BlackElo "2726"]
[Result "0-1"]
[Round "07"]
[TimeControl "180+1"]
[Date "2022.05.03"]
[WhiteClock "0:00:02"]
[BlackClock "0:00:14"]

1. d4 {[%clk 0:03:00]}  Nf6 {[%clk 0:02:52]} 2. Nf3 {[%clk 0:03:01]}  d5 {[%clk 0:02:51]} 3. Bf4 {[%clk 0:02:59]}  c5 {[%clk 0:02:50]} 4. e3 {[%clk 0:02:59]}  Nc6 {[%clk 0:02:50]} 5. Nbd2 {[%clk 0:02:59]}  cxd4 {[%clk 0:02:50]} 6. exd4 {[%clk 0:02:59]}  Bf5 {[%clk 0:02:49]} 7. Bb5 {[%clk 0:02:57]}  e6 {[%clk 0:02:48]} 8. Ne5 {[%clk 0:02:52]}  Qb6 {[%clk 0:02:47]} 9. c4 {[%clk 0:02:48]}  Qxd4 {[%clk 0:02:23]} 10. Nxc6 {[%clk 0:02:39]}  Qxf4 {[%clk 0:02:22]} 11. g3 {[%clk 0:02:37]}  Qc7 {[%clk 0:02:04]} 12. Nd4+ {[%clk 0:02:36]}  Kd8 {[%clk 0:01:59]} 13. Nxf5 {[%clk 0:02:34]}  exf5 {[%clk 0:01:59]} 14. cxd5 {[%clk 0:02:25]}  Qa5 {[%clk 0:01:50]} 15. Qa4 {[%clk 0:01:21]}  Bb4 {[%clk 0:01:49]} 16. Qxa5+ {[%clk 0:01:21]}  Bxa5 {[%clk 0:01:50]} 17. O-O-O {[%clk 0:01:20]}  a6 {[%clk 0:01:38]} 18. Bd3 {[%clk 0:01:19]}  Ng4 {[%clk 0:01:34]} 19. Rhf1 {[%clk 0:01:16]}  Nxh2 {[%clk 0:01:29]} 20. Rfe1 {[%clk 0:01:04]}  Ng4 {[%clk 0:01:28]} 21. Re2 {[%clk 0:01:04]}  Rc8+ {[%clk 0:01:12]} 22. Kb1 {[%clk 0:01:04]}  g6 {[%clk 0:01:05]} 23. Nc4 {[%clk 0:01:03]}  Bb4 {[%clk 0:01:05]} 24. a3 {[%clk 0:00:59]}  Bc5 {[%clk 0:01:01]} 25. Rdd2 {[%clk 0:00:33]}  b5 {[%clk 0:00:55]} 26. Na5 {[%clk 0:00:32]}  Kd7 {[%clk 0:00:50]} 27. a4 {[%clk 0:00:31]}  Bb4 {[%clk 0:00:48]} 28. Nc6 {[%clk 0:00:29]}  Bxd2 {[%clk 0:00:47]} 29. Rxd2 {[%clk 0:00:30]}  Kd6 {[%clk 0:00:38]} 30. axb5 {[%clk 0:00:30]}  axb5 {[%clk 0:00:39]} 31. Bxb5 {[%clk 0:00:31]}  Nf6 {[%clk 0:00:37]} 32. Bc4 {[%clk 0:00:27]}  Rhe8 {[%clk 0:00:35]} 33. b3 {[%clk 0:00:26]}  Re1+ {[%clk 0:00:34]} 34. Kb2 {[%clk 0:00:25]}  Ne4 {[%clk 0:00:34]} 35. Rc2 {[%clk 0:00:25]}  Ra8 {[%clk 0:00:34]} 36. Nd4 {[%clk 0:00:12]}  Raa1 {[%clk 0:00:32]} 37. Nb5+ {[%clk 0:00:12]}  Kd7 {[%clk 0:00:31]} 38. Na3 {[%clk 0:00:12]}  Rad1 {[%clk 0:00:29]} 39. Bb5+ {[%clk 0:00:11]}  Ke7 {[%clk 0:00:27]} 40. Rc7+ {[%clk 0:00:11]}  Kf6 {[%clk 0:00:27]} 41. Nc4 {[%clk 0:00:05]}  Rxd5 {[%clk 0:00:22]} 42. Be8 {[%clk 0:00:05]}  Nxf2 {[%clk 0:00:19]} 43. Rxf7+ {[%clk 0:00:05]}  Kg5 {[%clk 0:00:19]} 44. Bc6 {[%clk 0:00:04]}  Rc5 {[%clk 0:00:18]} 45. Bb7 {[%clk 0:00:03]}  h5 {[%clk 0:00:16]} 46. Rg7 {[%clk 0:00:02]}  Kh6 {[%clk 0:00:16]} 47. Rg8 {[%clk 0:00:02]}  Rc7 {[%clk 0:00:15]} 48. Bd5 {[%clk 0:00:03]}  Nd3+ {[%clk 0:00:15]} 49. Kc3 {[%clk 0:00:03]}  Nc5 {[%clk 0:00:16]} 50. Kb4 {[%clk 0:00:02]}  Ne4 {[%clk 0:00:16]} 51. Rd8 {[%clk 0:00:01]}  Nf6 {[%clk 0:00:15]} 52. Bf7 {[%clk 0:00:01]}  Rxf7 {[%clk 0:00:14]} 53. Nd6 {[%clk 0:00:02]}  Rd7 {[%clk 0:00:14]} 0-1


[Site "https://www.chess.com"]